bitfinex-derivatives/quotes_SOLF0:USTF0_20241224
["timestamp","ask_amount","ask_price","bid_price","bid_amount"]
[1734998829023,12.01696756,189.9,189.77,12.01696756]
[1734998829230,12.01696756,189.87,189.74,14.79866756]
[1734998829427,6.1107,189.86,189.74,14.79866756]
[1734998829625,8.7511,189.86,189.74,12.01696756]
[1734998830423,2.6379,189.79,189.74,12.01696756]
[1734998831427,8.7511,189.86,189.74,14.65546756]
[1734998831428,2.6377,189.81,189.74,14.65546756]
[1734998831827,8.7511,189.86,189.74,12.01696756]
[1734998833520,2.6379,189.79,189.74,12.01696756]
[1734998834123,2.6377,189.81,189.74,14.65546756]
[1734998834629,2.6377,189.81,189.75,2.6483]
[1734998835028,2.6378,189.8,189.75,2.6483]
[1734998835228,2.5907,189.86,189.77,14.65506756]
[1734998835425,2.5937,189.89,189.77,12.01696756]
[1734998835829,2.5937,189.89,189.8,12.01696756]
[1734998836032,2.5937,189.89,189.83,12.01696756]
[1734998836238,2.5937,189.89,189.8,15.53696756]
[1734998836624,2.6375,189.82,189.8,3.52]
[1734998836824,2.5937,189.89,189.8,3.52]
[1734998837934,2.6373,189.84,189.8,3.52]
[1734998838131,2.5937,189.89,189.8,15.53696756]
[1734998839035,2.5937,189.89,189.8,3.52]
[1734998839232,2.5937,189.89,189.77,12.01696756]
[1734998839436,2.6376,189.82,189.76,2.6383]
[1734998839637,2.6376,189.82,189.76,14.65526756]
[1734998840033,2.5937,189.89,189.76,14.65526756]
[1734998840239,2.6377,189.81,189.76,14.65526756]
[1734998840837,2.5937,189.89,189.76,14.65526756]
[1734998841037,2.6377,189.8,189.76,14.65526756]
[1734998842135,2.5937,189.89,189.79,12.01696756]
[1734998842533,2.6369,189.86,189.81,2.6375]
[1734998842726,2.6369,189.86,189.81,6.1575]
[1734998843135,2.6367,189.88,189.83,2.6372]
[1734998843330,3.52,189.94,189.82,12.01696756]
[1734998843533,5.2862,189.95,189.85,12.01696756]
[1734998844034,5.2862,189.95,189.84,2.644]
[1734998844839,5.2862,189.95,189.83,2.7707]
[1734998845035,12.01696756,189.93,189.81,3.52]
[1734998845243,12.01696756,189.9,189.78,12.01696756]
[1734998845636,6.2271,189.92,189.78,12.01696756]
[1734998846339,2.637,189.85,189.78,12.01696756]
[1734998847242,2.637,189.85,189.81,2.6375]
[1734998847440,6.2271,189.92,189.78,12.01696756]
[1734998847646,2.6369,189.87,189.78,12.01696756]
[1734998847950,6.2271,189.92,189.78,12.01696756]
[1734998848245,12.01696756,189.9,189.78,12.01696756]
[1734998849042,12.01696756,189.9,189.77,2.7657]
[1734998849260,6.2271,189.92,189.78,12.01696756]
[1734998849444,6.2271,189.92,189.81,12.01696756]
[1734998849637,12.01696756,189.94,189.82,3.52]
[1734998849845,5.2862,189.95,189.84,12.01696756]
[1734998850437,2.6361,189.91,189.84,12.01696756]
[1734998851444,2.6364,189.9,189.86,2.6368]
[1734998851650,5.2862,189.95,189.84,12.01696756]
[1734998852247,2.6363,189.9,189.85,2.6368]
[1734998852447,5.2862,189.95,189.82,6.086]
[1734998852955,19.19894252,190.02,189.85,19.19894252]
[1734998853249,5.4664,190.04,189.89,19.19894252]
[1734998853550,5.4664,190.04,189.9,6.309]
[1734998855253,2.6347,190.02,189.98,2.6351]
[1734998855457,2.6347,190.02,189.9,6.309]
[1734998856346,2.6347,190.02,189.93,19.19894252]
[1734998856555,2.6347,190.02,189.94,2.7366]
[1734998857056,2.6349,190.01,189.94,2.7366]
[1734998857247,2.7456,190.04,189.94,2.7366]
[1734998858185,2.6351,189.99,189.94,5.3723]
[1734998858348,2.7456,190.04,189.94,5.3723]
[1734998858670,2.6347,190.01,189.94,5.3723]
[1734998858765,2.7456,190.04,189.94,5.3723]
[1734998859144,2.6352,189.98,189.94,5.3723]
[1734998860151,2.6347,190.01,189.94,2.7366]
[1734998860351,2.7456,190.04,189.94,2.7366]
[1734998860654,2.6346,190.03,189.97,2.6353]
[1734998860856,2.8362,190.09,189.94,2.7366]
[1734998860857,6.3562,190.09,189.94,2.7366]
[1734998861047,9.1868,190.09,189.94,2.7366]
[1734998861452,2.6342,190.05,189.94,2.7366]
[1734998862449,2.6341,190.06,190.02,2.6346]
[1734998864045,2.6343,190.05,190.0,2.6349]
[1734998864294,5.6668,190.09,190.0,2.6349]
[1734998864445,2.6339,190.08,190.03,2.6344]
[1734998865753,2.6339,190.07,190.03,2.6344]
[1734998866443,2.7525,190.15,189.98,6.1828]
[1734998866650,5.3891,190.15,190.01,19.19894252]
[1734998866852,5.3891,190.15,190.02,2.717]
[1734998867051,2.6331,190.13,190.09,2.6336]
[1734998867270,3.52,190.2,190.06,3.52]
[1734998867448,6.182,190.2,190.07,2.7616]
[1734998867721,2.6327,190.16,190.11,2.6332]
[1734998867848,6.182,190.2,190.11,2.6332]
[1734998868060,6.182,190.2,190.07,2.7616]
[1734998868252,0.78247731,190.19,190.07,2.7616]
[1734998868558,6.182,190.2,190.07,2.7616]
[1734998868950,6.182,190.2,190.08,3.52]
[1734998870057,6.182,190.2,190.12,2.6332]
[1734998870058,2.6327,190.16,190.12,2.6332]
[1734998876156,2.662,190.2,190.08,3.52]
[1734998876418,2.6325,190.17,190.13,2.6331]
[1734998876663,13.29826892,190.25,190.13,13.29826892]
[1734998877564,13.29826892,190.25,190.14,6.1529]
[1734998877565,2.6324,190.19,190.14,6.1529]
[1734998877956,13.29826892,190.25,190.1,16.81826892]
[1734998878164,13.29826892,190.22,190.1,16.81826892]
[1734998878355,2.6328,190.15,190.11,2.6333]
[1734998878860,6.2082,190.21,190.1,13.29826892]
[1734998879658,13.29826892,190.19,190.09,2.6335]
[1734998881637,2.6334,190.11,190.07,5.3954]
[1734998881966,9.0584,190.21,190.07,16.05986892]
[1734998882867,2.6327,190.16,190.11,2.6333]
[1734998883073,9.0584,190.21,190.07,16.05986892]
[1734998883567,2.633,190.14,190.09,2.6335]
[1734998886168,5.5384,190.21,190.1,13.29826892]
[1734998886364,2.6882,190.21,190.11,3.52]
[1734998886563,2.6324,190.19,190.15,2.6328]
[1734998887069,13.29826892,190.18,189.92,63.77031936]
[1734998887269,6.1327,190.17,190.02,13.29826892]
[1734998887479,13.29826892,190.15,190.02,13.29826892]
[1734998887663,13.29826892,190.15,190.03,2.6344]
[1734998888065,13.29826892,190.15,190.02,13.29826892]
[1734998888376,8.7968,190.17,190.02,13.29826892]
[1734998888567,8.7968,190.17,190.03,2.595]
[1734998889364,2.6336,190.1,190.05,2.6341]
[1734998890062,2.6339,190.08,190.04,2.6343]
[1734998890262,8.7968,190.17,190.01,6.1874]
[1734998890477,13.29826892,190.13,189.99,13.29826892]
[1734998890665,13.29826892,190.13,189.94,2.603]
[1734998890666,2.6349,190.01,189.96,19.45356892]
[1734998891362,2.6628,190.08,189.97,2.6352]
[1734998891566,2.6628,190.08,189.96,16.81826892]
[1734998893063,2.6343,190.04,190.0,2.6349]
[1734998893263,2.6343,190.04,189.96,16.81826892]
[1734998894072,2.6346,190.02,189.98,2.6352]
[1734998894276,2.6628,190.08,189.96,16.81826892]
[1734998894670,2.6349,190.01,189.96,19.45356892]
[1734998895769,2.6349,190.0,189.96,15.93356892]
[1734998896182,13.29826892,190.06,189.94,2.7582]
[1734998896372,13.29826892,190.03,189.93,3.52]
[1734998896771,16.81826892,190.03,189.9,13.29826892]
[1734998897871,13.29826892,190.0,189.89,3.52]
[1734998898073,5.6216,189.99,189.89,3.52]
[1734998898272,5.6216,189.99,189.87,18.88486892]
[1734998898475,13.29826892,189.94,189.83,3.52]
[1734998898873,13.29826892,189.97,189.84,13.29826892]
[1734998899176,3.52,189.98,189.87,13.29826892]
[1734998899377,2.6355,189.96,189.91,2.6361]
[1734998900675,2.6356,189.95,189.9,2.6363]
[1734998901279,2.6355,189.96,189.88,2.6364]
[1734998901483,5.6216,189.99,189.87,16.81826892]
[1734998901877,2.6363,189.9,189.87,16.81826892]
[1734998902079,2.6363,189.9,189.87,3.52]
[1734998902673,2.6363,189.9,189.85,2.6369]
[1734998903376,3.52,189.96,189.84,13.29826892]
[1734998903581,2.6366,189.88,189.84,15.93536892]
[1734998903893,13.29826892,189.94,189.81,19.57916892]
[1734998904182,2.6368,189.87,189.81,22.21656892]
[1734998904386,13.29826892,189.94,189.81,22.21656892]
[1734998904881,13.29826892,189.91,189.78,15.93606892]
[1734998905081,6.1991,189.9,189.78,15.93606892]
[1734998905279,6.1991,189.9,189.76,3.52]
[1734998905280,13.29826892,189.88,189.76,3.52]
[1734998905481,2.6376,189.81,189.76,6.1581]
[1734998905685,13.29826892,189.88,189.76,2.6381]
[1734998906178,2.6371,189.85,189.76,2.6381]
[1734998906382,13.29826892,189.88,189.76,2.6381]
[1734998907478,2.6376,189.81,189.76,2.6381]
[1734998908183,2.6376,189.81,189.75,15.91176892]
[1734998908184,13.29826892,189.85,189.73,3.52]
[1734998908383,3.52,189.84,189.73,3.52]
[1734998909380,2.6372,189.84,189.76,2.6382]
[1734998909576,16.81826892,189.88,189.76,2.6382]
[1734998910188,2.6375,189.82,189.76,2.6382]
[1734998911689,2.6375,189.81,189.76,2.6382]
[1734998913987,16.81826892,189.88,189.74,1.7525]
[1734998914187,2.6381,189.78,189.74,1.7525]
[1734998914381,1.139,189.87,189.74,1.7525]
[1734998914585,13.29826892,189.84,189.74,1.7525]
[1734998915592,2.6381,189.77,189.74,1.7525]
[1734998917280,13.29826892,189.84,189.74,1.7525]
[1734998917483,2.6384,189.76,189.71,5.4678]
[1734998918489,1.6281,189.81,189.71,2.8289]
[1734998918690,1.6796,189.8,189.67,3.52]
[1734998918991,13.29826892,189.78,189.66,16.81826892]
[1734998919191,2.6389,189.71,189.66,19.45786892]
[1734998919392,3.52,189.82,189.66,19.45786892]
[1734998919393,5.2739,189.86,189.69,13.29826892]
[1734998919686,13.29826892,189.89,189.74,13.29826892]
[1734998919898,13.29826892,189.89,189.75,3.52]
[1734998920292,2.6375,189.81,189.76,2.6381]
[1734998922989,2.637,189.85,189.8,2.6377]
[1734998923198,13.29826892,189.91,189.8,3.52]
[1734998923392,2.6378,189.8,189.76,1.6289]
[1734998923639,2.6378,189.8,189.76,5.1489]
[1734998924590,13.29826892,189.85,189.71,13.29826892]
[1734998924796,1.676,189.84,189.71,13.29826892]
[1734998925097,2.6385,189.75,189.72,3.52]
[1734998925501,5.0118,189.84,189.72,3.52]
[1734998926903,3.2887,189.84,189.72,3.52]
[1734998927198,3.2887,189.84,189.72,16.81826892]
[1734998927400,3.2887,189.84,189.73,1.7205]
[1734998927596,3.2887,189.84,189.75,2.6383]
[1734998928395,3.2887,189.84,189.77,2.6381]
[1734998928998,2.6376,189.81,189.77,2.6381]
[1734998930503,3.2887,189.84,189.75,13.29826892]
[1734998930706,2.6375,189.82,189.77,2.638]
[1734998931207,2.6376,189.81,189.77,2.638]
[1734998932600,2.6376,189.81,189.75,13.29826892]
[1734998932812,2.6376,189.81,189.78,2.6379]
[1734998933801,2.6376,189.81,189.77,2.638]
[1734998934203,2.6374,189.83,189.78,3.52]
[1734998934704,2.6374,189.83,189.8,2.6377]
[1734998936009,13.29826892,189.9,189.78,3.52]
[1734998936608,2.6377,189.8,189.78,3.52]
[1734998938709,2.638,189.78,189.74,1.5963]
[1734998938907,13.29826892,189.84,189.73,1.7205]
[1734998939112,1.6224,189.83,189.73,1.7205]
[1734998939310,1.6224,189.83,189.68,1.6477]
[1734998939311,2.639,189.71,189.68,1.6477]
[1734998939708,2.639,189.71,189.66,30.12392345]
[1734998939910,2.639,189.71,189.66,33.64392345]
[1734998940509,2.639,189.71,189.66,21.14746892]
[1734998941009,13.29826892,189.78,189.66,18.50796892]
[1734998941419,13.29826892,189.75,189.66,1.6897]
[1734998941615,2.6395,189.67,189.66,1.6897]
[1734998942415,1.6045,189.74,189.63,1.6477]
[1734998942605,3.52,189.8,189.65,13.29826892]
[1734998942808,13.29826892,189.78,189.65,13.29826892]
[1734998943014,13.29826892,189.78,189.64,3.52]
[1734998943311,13.29826892,189.75,189.64,3.52]
[1734998943507,13.29826892,189.75,189.62,13.29826892]
[1734998943713,13.29826892,189.72,189.61,3.52]
[1734998943950,3.2548,189.71,189.61,3.52]
[1734998944311,2.6402,189.62,189.55,58.49831936]
[1734998944512,2.6402,189.62,189.57,15.93896892]
[1734998944713,2.6402,189.62,189.57,13.29826892]
[1734998945214,13.29826892,189.69,189.57,13.29826892]
[1734998945408,2.6401,189.63,189.58,2.6407]
[1734998946716,2.6402,189.62,189.58,2.6407]
[1734998947017,2.6402,189.62,189.57,15.93916892]
[1734998948111,3.2548,189.71,189.56,3.52]
[1734998948620,13.29826892,189.69,189.57,13.29826892]
[1734998948816,2.6407,189.58,189.54,13.29826892]
[1734998950912,2.6405,189.6,189.54,13.29826892]
[1734998951519,2.6407,189.59,189.54,15.93956892]
[1734998952417,1.6582,189.66,189.57,2.6409]
[1734998952620,3.2548,189.71,189.57,13.29826892]
[1734998953222,3.2548,189.71,189.59,2.6405]
[1734998953423,3.2548,189.71,189.6,3.52]
[1734998953626,3.2548,189.71,189.6,16.81826892]
[1734998953923,3.2548,189.71,189.62,2.6401]
[1734998955422,2.6396,189.66,189.62,2.6401]
[1734998955918,14.94766892,189.75,189.63,2.64]
[1734998956127,2.6394,189.68,189.63,2.64]
[1734998957525,13.29826892,189.72,189.5,54.84]
[1734998957819,13.29826892,189.65,189.51,3.2189]
[1734998958026,6.8771,189.64,189.52,2.6415]
[1734998958228,6.8771,189.64,189.51,3.2189]
[1734998958622,13.29826892,189.59,189.45,3.52]
[1734998958829,3.52,189.58,189.45,13.29826892]
[1734998959030,3.52,189.58,189.46,3.52]
[1734998959928,16.81826892,189.58,189.46,3.52]
[1734998960122,13.29826892,189.61,189.46,3.52]
[1734998960329,13.29826892,189.61,189.49,13.29826892]
[1734998960530,2.6409,189.57,189.51,2.6416]
[1734998960722,16.65536892,189.64,189.49,13.29826892]
[1734998960922,3.3571,189.64,189.52,16.81826892]
[1734998961123,3.3571,189.64,189.53,3.52]
[1734998961431,13.29826892,189.61,189.5,1.6144]
[1734998962231,3.3571,189.64,189.5,1.6144]
[1734998962424,3.3571,189.64,189.51,1.5361]
[1734998962725,2.6408,189.58,189.52,2.6414]
[1734998963230,2.6408,189.58,189.53,2.6413]
[1734998963426,2.6408,189.58,189.54,3.52]
[1734998964030,3.3571,189.64,189.54,3.52]
[1734998964223,1.6788,189.64,189.54,3.52]
[1734998965129,2.6403,189.61,189.54,3.52]
[1734998965330,1.6788,189.64,189.54,3.52]
[1734998967229,2.641,189.57,189.54,3.52]
[1734998968129,2.641,189.57,189.52,2.6415]
[1734998968330,1.6891,189.63,189.53,2.6414]
[1734998968630,2.6408,189.58,189.53,2.6414]
[1734998969035,1.6891,189.63,189.53,2.6414]
[1734998969332,2.6409,189.57,189.53,2.6414]
[1734998969524,1.6891,189.63,189.51,5.0561]
[1734998969729,2.6411,189.56,189.51,5.0561]
[1734998970237,2.6411,189.56,189.51,7.6978]
[1734998970735,1.6891,189.63,189.51,5.0561]
[1734998972534,2.6409,189.57,189.53,2.6414]
[1734998974529,1.6891,189.63,189.51,5.0561]
[1734998974827,2.6408,189.58,189.54,2.6412]
[1734998976432,1.6891,189.63,189.52,3.52]
[1734998977239,2.6409,189.58,189.54,2.6413]
[1734998979491,1.6891,189.63,189.52,3.52]
[1734998979642,1.6891,189.63,189.49,3.6]
[1734998979944,1.6891,189.63,189.48,3.6]
[1734998980439,2.6418,189.51,189.47,2.6422]
[1734998980939,1.6891,189.63,189.46,5.1517]
[1734998981247,1.6891,189.63,189.48,19.26627778]
[1734998981542,1.6891,189.63,189.48,3.6]
[1734998982543,1.6891,189.63,189.5,19.26627778]
[1734998982942,2.6407,189.59,189.5,19.26627778]
[1734998983143,5.1988,189.64,189.5,19.26627778]
[1734998983343,1.6788,189.64,189.5,19.26627778]
[1734998983545,2.6406,189.59,189.54,2.6413]
[1734998983740,2.6406,189.59,189.54,3.6]
[1734998984246,2.6404,189.61,189.56,2.641]
[1734998984545,1.6788,189.64,189.56,2.641]
[1734998984748,2.6411,189.56,189.54,5.1858]
[1734998986644,2.6412,189.55,189.54,3.6]
[1734998988078,1.6788,189.64,189.54,3.6]
[1734998988441,2.6408,189.58,189.54,15.63745579]
[1734998988642,1.6788,189.64,189.54,15.63745579]
[1734998989042,2.6406,189.6,189.56,2.641]
[1734998989651,2.6408,189.58,189.54,18.27865579]
[1734998992048,2.6405,189.6,189.54,15.63745579]
[1734998992249,2.6405,189.6,189.55,1.6414]
[1734998992647,2.6405,189.6,189.57,12.03745579]
[1734998992849,1.5374,189.67,189.57,12.03745579]
[1734998993851,2.6405,189.6,189.57,14.67835579]
[1734998995355,1.5374,189.67,189.55,1.6414]
[1734998995656,2.6409,189.57,189.54,6.2413]
[1734998996155,2.6406,189.6,189.54,15.63745579]
[1734998997456,2.6406,189.6,189.57,2.6408]
[1734998998356,2.6406,189.6,189.54,15.63745579]
[1734998998357,5.1374,189.67,189.54,15.63745579]
[1734998999057,2.6402,189.62,189.54,6.2412]
[1734998999354,12.03745579,189.62,189.48,1.6359]
[1734998999656,5.1475,189.61,189.48,5.2359]
[1734999000172,1.5231,189.6,189.48,5.2359]
[1734999001463,1.5231,189.6,189.51,2.6417]
[1734999001857,1.5231,189.6,189.48,5.2359]
[1734999002265,1.5231,189.6,189.42,70.99477389]
[1734999002453,12.03745579,189.59,189.45,12.03745579]
[1734999003161,2.6417,189.52,189.48,2.6421]
[1734999004254,2.6417,189.51,189.48,2.6421]
[1734999004656,12.03745579,189.59,189.49,2.642]
[1734999005059,2.641,189.56,189.49,2.642]
[1734999005261,12.03745579,189.59,189.47,2.6422]
[1734999005454,1.5433,189.58,189.47,2.6422]
[1734999005855,2.6418,189.51,189.47,2.6422]
[1734999006559,1.5433,189.58,189.5,2.6418]
[1734999007356,2.6417,189.52,189.47,6.2422]
[1734999007957,2.6419,189.5,189.47,6.2422]
[1734999008157,2.6419,189.5,189.46,12.03745579]
[1734999009161,2.6419,189.5,189.44,6.7212]
[1734999009351,2.6419,189.5,189.46,2.6424]
[1734999009557,2.6419,189.5,189.46,14.67985579]
[1734999010863,1.5433,189.58,189.46,14.67985579]
[1734999011062,2.642,189.49,189.46,14.67985579]
[1734999011264,1.5433,189.58,189.46,12.03745579]
[1734999011963,2.6415,189.53,189.49,2.6419]
[1734999012164,9.25201615,189.58,189.5,7.70871615]
[1734999012436,1.5231,189.6,189.52,7.70871615]
[1734999012664,2.6409,189.57,189.53,2.6413]
[1734999012854,1.5475,189.61,189.5,3.56]
[1734999013059,1.5475,189.61,189.56,7.70871615]
[1734999013261,1.5475,189.61,189.5,3.56]
[1734999013676,1.5475,189.61,189.55,7.70871615]
[1734999014165,2.6408,189.58,189.53,2.6413]
[1734999014872,2.641,189.57,189.52,12.03869281]
[1734999015462,2.6407,189.58,189.54,2.6413]
[1734999016063,2.6409,189.57,189.53,2.6414]
[1734999016462,3.56,189.63,189.53,2.6414]
[1734999016655,2.6408,189.58,189.53,4.296]
[1734999017260,2.6409,189.57,189.53,4.296]
[1734999017779,2.6414,189.54,189.5,3.56]
[1734999018063,15.59869281,189.63,189.5,3.56]
[1734999018289,15.59869281,189.63,189.5,6.2018]
[1734999019062,15.59869281,189.63,189.5,2.6418]
[1734999019262,2.6415,189.53,189.49,14.68069281]
[1734999020060,15.59869281,189.63,189.49,12.03869281]
[1734999020262,12.03869281,189.6,189.48,3.56]
[1734999020461,12.03869281,189.6,189.47,2.6422]
[1734999020657,2.6423,189.48,189.43,2.6427]
[1734999020962,3.56,189.56,189.43,12.03869281]
[1734999021161,6.7158,189.56,189.43,12.03869281]
[1734999021364,6.7158,189.56,189.43,15.59869281]
[1734999022069,2.642,189.5,189.45,2.6424]
[1734999024066,2.642,189.49,189.45,2.6424]
[1734999024465,6.7158,189.56,189.44,2.6427]
[1734999024666,2.6423,189.47,189.43,12.03869281]
[1734999025266,2.6425,189.46,189.43,12.03869281]
[1734999025470,2.6425,189.46,189.42,4.3199]
[1734999026071,2.6418,189.51,189.43,2.6427]
[1734999026370,1.568,189.55,189.44,12.03869281]
[1734999027071,2.642,189.49,189.44,12.03869281]
[1734999028170,12.03869281,189.54,189.42,1.677]
[1734999028576,12.03869281,189.54,189.45,2.6424]
[1734999028872,3.56,189.55,189.46,12.03869281]
[1734999029067,3.1558,189.56,189.46,15.59869281]
[1734999029276,2.6415,189.53,189.49,2.642]
[1734999029864,2.6413,189.54,189.46,15.59869281]
[1734999029971,1.6144,189.56,189.49,12.03869281]
[1734999030276,1.6144,189.56,189.46,3.56]
[1734999030568,2.6414,189.53,189.49,2.642]
[1734999034081,1.6144,189.56,189.46,3.56]
[1734999034273,7.71101872,189.55,189.46,2.6424]
[1734999034476,7.71101872,189.55,189.46,10.35341872]
[1734999034677,7.71101872,189.53,189.46,10.35341872]
[1734999035376,7.71101872,189.53,189.44,2.6426]
[1734999035579,7.71101872,189.53,189.44,10.35361872]
[1734999036184,9.34891872,189.53,189.44,10.35361872]
[1734999036683,1.6379,189.53,189.46,10.35341872]
[1734999036896,3.56,189.54,189.46,10.35341872]
[1734999037183,7.71101872,189.53,189.44,10.35371872]
[1734999037383,7.71101872,189.51,189.44,10.35371872]
[1734999038185,7.71101872,189.49,189.32,160.86118139]
[1734999038383,7.71101872,189.43,189.33,58.49831936]
[1734999038802,7.71101872,189.43,189.34,7.71101872]
[1734999038975,7.71101872,189.43,189.36,7.71101872]
[1734999039280,3.54,189.45,189.37,7.71101872]
[1734999039680,2.6425,189.46,189.41,7.71101872]
[1734999040175,2.6425,189.46,189.4,2.6431]
[1734999040380,2.6429,189.43,189.38,14.69991047]
[1734999040883,1.5652,189.48,189.38,12.05641047]
[1734999041082,2.6426,189.45,189.41,2.6431]
[1734999044486,2.6424,189.47,189.42,2.643]
[1734999044818,1.5652,189.48,189.41,12.05641047]
[1734999045089,2.6421,189.49,189.44,2.6427]
[1734999048285,2.6421,189.49,189.41,12.05641047]
[1734999048490,2.6421,189.49,189.45,2.6425]
[1734999048983,5.2099,189.54,189.41,13.63341047]
[1734999048984,1.6699,189.54,189.41,13.63341047]
[1734999049194,2.6417,189.51,189.47,2.6423]
[1734999049895,2.6415,189.53,189.49,2.6419]
[1734999050088,1.5794,189.57,189.47,12.05641047]
[1734999050293,2.6413,189.55,189.52,2.6416]
[1734999050787,2.641,189.57,189.52,2.6416]
[1734999050987,7.20919417,189.61,189.53,12.05641047]
[1734999051190,1.6503,189.64,189.53,12.05641047]
[1734999051496,2.6401,189.63,189.59,2.6406]
[1734999051701,28.8367767,189.67,189.59,12.05641047]
[1734999052193,40.89318717,189.67,189.57,3.1849]
[1734999052395,40.89318717,189.67,189.56,12.05641047]
[1734999052396,3.54,189.66,189.56,12.05641047]
[1734999053495,2.6405,189.61,189.56,14.69731047]
[1734999054346,2.6401,189.63,189.58,2.6407]
[1734999054497,6.8321,189.7,189.59,12.05641047]
[1734999054799,6.8321,189.7,189.59,15.59641047]
[1734999055002,2.6399,189.65,189.6,2.6404]
[1734999056021,2.6399,189.65,189.59,15.59641047]
[1734999056195,2.6391,189.7,189.62,12.05641047]
[1734999056394,1.6503,189.72,189.62,12.05641047]
[1734999057400,2.6396,189.67,189.62,12.05641047]
[1734999060096,3.2895,189.77,189.66,3.3357]
[1734999060698,2.6386,189.74,189.69,2.6392]
[1734999063101,2.6386,189.74,189.69,14.69561047]
[1734999065408,2.6386,189.74,189.69,12.05641047]
[1734999066506,2.6386,189.74,189.69,14.69561047]
[1734999068514,1.6717,189.77,189.66,3.3357]
[1734999069212,2.639,189.71,189.66,5.9753]
[1734999069713,1.6717,189.77,189.66,5.9753]
[1734999069714,2.6385,189.74,189.66,3.3357]
[1734999070012,1.6717,189.77,189.7,12.05641047]
[1734999070208,2.6382,189.77,189.72,2.6388]
[1734999070410,2.75634545,189.8,189.7,12.05641047]
[1734999071614,2.75634545,189.8,189.71,2.6389]
[1734999071815,2.75634545,189.8,189.7,12.05641047]
[1734999072217,2.6387,189.73,189.7,12.05641047]
[1734999072411,2.6387,189.73,189.69,2.6392]
[1734999072608,2.6387,189.73,189.69,14.69561047]
[1734999077520,2.6387,189.73,189.7,2.6391]
[1734999080016,2.6386,189.74,189.7,2.6391]
[1734999080216,2.6386,189.74,189.73,7.69116879]
[1734999081014,2.75634545,189.8,189.73,7.69116879]
[1734999081611,2.6383,189.76,189.73,7.69116879]
[1734999083613,2.6383,189.76,189.73,10.32986879]
[1734999085719,2.6386,189.74,189.71,2.6389]
[1734999085919,2.6386,189.74,189.72,7.69116879]
[1734999087628,2.6386,189.74,189.7,2.639]
[1734999088022,2.6386,189.74,189.72,7.69116879]
[1734999090622,1.5293,189.8,189.72,7.69116879]
[1734999090827,2.6384,189.76,189.74,7.69116879]
[1734999092830,2.6384,189.75,189.74,7.69116879]
[1734999093028,9.22046879,189.8,189.72,7.69116879]
[1734999093530,7.69116879,189.78,189.7,7.69116879]
[1734999093733,7.69116879,189.76,189.67,7.69116879]
[1734999094056,7.69116879,189.72,189.62,70.99477389]
[1734999094232,7.69116879,189.68,189.62,78.68594268]
[1734999094431,7.69116879,189.68,189.62,70.99477389]
[1734999094732,2.6402,189.63,189.6,7.69116879]
[1734999095331,2.6403,189.61,189.6,7.69116879]
[1734999095532,7.69116879,189.66,189.59,12.49645453]
[1734999095733,9.30946879,189.66,189.58,7.69116879]
[1734999096234,1.6183,189.66,189.56,1.5694]
[1734999096833,1.6183,189.66,189.57,2.6409]
[1734999097527,2.6402,189.63,189.58,14.67695905]
[1734999097733,1.6183,189.66,189.58,12.03625905]
[1734999098130,2.6402,189.63,189.58,14.67695905]
[1734999098328,1.6183,189.66,189.58,12.03625905]
[1734999098532,3.52,189.65,189.55,12.03625905]
[1734999098935,15.55625905,189.65,189.52,12.03625905]
[1734999100944,2.641,189.57,189.52,12.03625905]
[1734999101140,2.641,189.57,189.47,1.6549]
[1734999101141,12.03625905,189.62,189.47,1.6549]
[1734999101349,1.6583,189.61,189.48,12.03625905]
[1734999101846,1.6583,189.61,189.51,12.03625905]
[1734999102035,2.641,189.57,189.51,14.67785905]
[1734999102641,2.6412,189.56,189.51,12.03625905]
[1734999105348,1.6583,189.61,189.51,12.03625905]
[1734999105761,1.6583,189.61,189.47,1.6549]